bitfinex/quotes_SOLUSD_20260214
["timestamp","ask_amount","ask_price","bid_price","bid_amount"]
[1771085840410,57.42,87.468,87.45,7.31397005]
[1771085840718,57.42,87.468,87.451,0.47796828]
[1771085840917,57.42,87.468,87.45,7.31397005]
[1771085841208,0.48626159,87.467,87.441,0.47796828]
[1771085841411,0.48626159,87.467,87.433,0.47796828]
[1771085841612,0.48626159,87.467,87.43,7.31397005]
[1771085841991,0.48626159,87.465,87.43,7.31397005]
[1771085842419,0.48626159,87.463,87.43,7.31397005]
[1771085843131,11.43301397,87.466,87.441,0.47796828]
[1771085843132,57.42,87.462,87.441,0.47796828]
[1771085845028,11.4298777,87.49,87.451,0.47796828]
[1771085845197,57.42,87.489,87.461,0.47796828]
[1771085845900,57.90626159,87.489,87.461,0.47796828]
[1771085846701,11.43013899,87.488,87.461,0.47796828]
[1771085847611,0.48626159,87.487,87.441,0.47796828]
[1771085848208,0.48626159,87.487,87.45,7.31397005]
[1771085849391,0.48626159,87.479,87.433,0.47796828]
[1771085849595,57.48,87.478,87.45,7.31397005]
[1771085849817,57.48,87.478,87.45,7.79193833]
[1771085850393,57.96626159,87.478,87.45,7.79193833]
[1771085850602,0.48626159,87.477,87.45,7.79193833]
[1771085851217,0.48626159,87.477,87.442,0.47796828]
[1771085851417,0.48626159,87.475,87.442,0.47796828]
[1771085852200,11.43170698,87.476,87.451,0.47796828]
[1771085853011,0.48626159,87.491,87.461,0.47796828]
[1771085853208,57.54,87.49,87.461,0.47796828]
[1771085854330,0.48626159,87.488,87.461,0.47796828]
[1771085854510,0.48626159,87.488,87.46,7.31397005]
[1771085854913,0.48626159,87.488,87.46,7.32190384]
[1771085855932,0.48626159,87.488,87.454,11.91243858]
[1771085856224,11.43026964,87.487,87.454,11.91243858]
[1771085856530,0.48626159,87.486,87.454,11.91243858]
[1771085857112,0.48626159,87.486,87.454,0.47796828]
[1771085857626,0.48626159,87.486,87.446,0.47796828]
[1771085859530,40.00685831,87.485,87.443,11.43594044]
[1771085859727,0.48626159,87.484,87.443,11.43594044]
[1771085860031,0.48626159,87.484,87.44,7.32190384]
[1771085860232,0.48626159,87.484,87.441,11.91425103]
[1771085860430,0.48626159,87.484,87.441,11.43628275]
[1771085860732,0.48626159,87.484,87.442,0.47796828]
[1771085861733,0.47480981,87.482,87.442,0.47796828]
[1771085861930,11.43079226,87.483,87.451,0.46655885]
[1771085862114,57.62,87.482,87.451,0.46655885]
[1771085863522,58.08515965,87.482,87.451,0.46655885]
[1771085863727,0.46515965,87.481,87.451,0.46655885]
[1771085864135,11.89634392,87.48,87.452,11.92444263]
[1771085864438,0.46515965,87.479,87.452,11.92444263]
[1771085866236,0.46515965,87.477,87.445,11.43566737]
[1771085866419,0.46515965,87.477,87.446,0.48959838]
[1771085867314,0.46515965,87.475,87.446,0.48959838]
[1771085867814,0.46515965,87.475,87.448,0.48959838]
[1771085868336,0.46515965,87.475,87.441,0.48959838]
[1771085868741,0.46515965,87.475,87.434,0.48959838]
[1771085869124,0.46515965,87.469,87.431,61.5]
[1771085869323,0.46515965,87.467,87.429,0.48959838]
[1771085869726,0.46515965,87.465,87.429,0.48959838]
[1771085870843,0.46515965,87.463,87.431,0.48959838]
[1771085871920,0.46515965,87.463,87.424,0.48959838]
[1771085872121,0.46515965,87.461,87.424,0.48959838]
[1771085872322,0.46515965,87.459,87.417,0.48959838]
[1771085872922,7.32190384,87.46,87.417,0.48959838]
[1771085872923,0.46515965,87.457,87.417,0.48959838]
[1771085874650,0.46515965,87.455,87.417,0.48959838]
[1771085875846,0.46515965,87.453,87.417,0.48959838]
[1771085876227,0.46515965,87.453,87.411,0.48959838]
[1771085876430,57.7,87.454,87.411,0.48959838]
[1771085876431,0.46515965,87.449,87.411,0.48959838]
[1771085876951,0.46515965,87.447,87.411,0.48959838]
[1771085878425,0.46515965,87.445,87.405,0.48959838]
[1771085878827,0.46515965,87.445,87.4,3.13224619]
[1771085880749,0.46515965,87.443,87.406,0.48959838]
[1771085881445,0.46515965,87.443,87.4,14.5738057]
[1771085881648,0.46515965,87.439,87.4,0.2]
[1771085881956,0.46515965,87.437,87.4,0.2]
[1771085882643,0.46515965,87.437,87.401,11.44151668]
[1771085883451,0.46515965,87.435,87.4,0.68959838]
[1771085883852,0.46515965,87.435,87.4,12.13113932]
[1771085884044,0.46515965,87.435,87.4,0.68959838]
[1771085884348,0.46515965,87.435,87.4,12.13112677]
[1771085884649,0.46515965,87.435,87.409,0.48959838]
[1771085884841,0.46515965,87.435,87.403,0.48959838]
[1771085885564,0.46515965,87.433,87.403,0.48959838]
[1771085886538,0.46515965,87.431,87.403,0.48959838]
[1771085888052,11.4377216,87.43,87.409,0.48959838]
[1771085889460,0.46515965,87.429,87.4,0.2]
[1771085889654,0.46515965,87.428,87.4,0.2]
[1771085889849,0.46515965,87.426,87.4,0.2]
[1771085890359,0.46515965,87.424,87.4,0.2]
[1771085891137,11.43863742,87.423,87.4,0.2]
[1771085891339,0.46515965,87.422,87.4,0.2]
[1771085892758,2.93224619,87.42,87.391,10.41703432]
[1771085892959,0.46995473,87.418,87.391,10.41703432]
[1771085893341,0.46995473,87.416,87.391,10.41703432]
[1771085894355,0.46995473,87.416,87.391,9.06617372]
[1771085894659,0.46995473,87.416,87.382,4.61729252]
[1771085894858,40.03889492,87.415,87.382,5.11729252]
[1771085895265,40.03889492,87.415,87.383,0.5]
[1771085896569,57.88,87.414,87.383,0.5]
[1771085897146,11.439946,87.413,87.383,0.5]
[1771085898449,11.439946,87.413,87.376,0.5]
[1771085898450,2.93224619,87.4,87.376,0.5]
[1771085898748,57.96,87.399,87.366,0.5]
[1771085898948,2.93224619,87.41,87.371,0.5]
[1771085899170,55.84,87.409,87.391,0.5]
[1771085899378,57.98,87.408,87.391,0.5]
[1771085900168,57.98,87.408,87.38,2.93224619]
[1771085900469,11.43824491,87.426,87.39,2.93224619]
[1771085900673,0.46995473,87.448,87.41,2.93224619]
[1771085900874,58.02,87.447,87.41,2.93224619]
[1771085901167,58.48995473,87.447,87.41,2.93224619]
[1771085901378,69.45562884,87.446,87.411,11.44020775]
[1771085901558,0.46995473,87.445,87.4,2.93224619]
[1771085901870,0.46995473,87.429,87.38,14.3763883]
[1771085902069,0.46995473,87.427,87.381,0.47831632]
[1771085902271,0.46995473,87.419,87.381,0.47831632]
[1771085902449,0.46995473,87.417,87.381,0.47831632]
[1771085903047,0.46995473,87.415,87.383,0.47831632]
[1771085903250,0.46995473,87.413,87.383,0.47831632]
[1771085904976,58.04,87.414,87.383,0.47831632]
[1771085904977,2.93224619,87.41,87.383,0.47831632]
[1771085905179,0.46995473,87.409,87.383,0.47831632]
[1771085905355,0.46995473,87.407,87.375,0.47831632]
[1771085905852,11.4406004,87.408,87.362,0.47831632]
[1771085905853,0.46995473,87.399,87.362,0.47831632]
[1771085906052,0.46995473,87.397,87.362,0.47831632]
[1771085906473,0.46995473,87.395,87.362,0.47831632]
[1771085906675,2.93224619,87.39,87.362,0.47831632]
[1771085906874,3.40220092,87.39,87.362,0.47831632]
[1771085907080,0.46995473,87.39,87.363,11.92480968]
[1771085907275,0.46995473,87.39,87.364,0.47831632]
[1771085908275,0.46995473,87.39,87.36,0.2]
[1771085908276,2.93224619,87.37,87.36,0.2]
[1771085908460,58.50995473,87.369,87.36,0.2]
[1771085909359,58.04,87.368,87.36,0.2]
[1771085909779,0.46995473,87.369,87.36,0.2]
[1771085909976,58.04,87.368,87.36,0.2]
[1771085910859,69.48583829,87.368,87.35,0.2]
[1771085911282,11.44583829,87.368,87.35,0.2]
[1771085911579,11.44610031,87.366,87.35,0.2]
[1771085912979,11.44636234,87.364,87.35,0.2]
[1771085913684,2.93224619,87.36,87.35,0.2]
[1771085914866,2.93836036,87.36,87.35,0.2]
[1771085915173,11.44701747,87.359,87.344,0.47831632]
[1771085915586,11.44701747,87.359,87.337,0.47831632]
[1771085915882,0.46995473,87.358,87.33,0.47831632]
[1771085916080,11.44701747,87.359,87.322,8.8902211]
[1771085916081,0.3,87.349,87.322,8.8902211]
[1771085916382,2.93836036,87.35,87.27,46.03463847]
[1771085916383,0.3,87.329,87.301,0.47831632]
[1771085916588,2.93836036,87.32,87.301,0.47831632]
[1771085917290,58.1,87.319,87.301,0.47831632]
[1771085918789,11.45226124,87.319,87.301,0.47831632]
[1771085919087,58.12,87.318,87.301,0.47831632]
[1771085919285,0.3,87.318,87.3,0.2]
[1771085919487,2.93836036,87.31,87.3,0.2]
[1771085919986,0.29999999,87.308,87.28,0.2]
[1771085920192,2.93836036,87.3,87.283,0.47831632]
[1771085920395,2.93836036,87.3,87.28,0.2]
[1771085920771,0.09999999,87.289,87.27,0.10000001]
[1771085920970,2.93836036,87.28,87.26,0.2]
[1771085921165,58.14,87.279,87.26,0.2]
[1771085921371,58.14,87.279,87.261,0.5]
[1771085921677,58.14,87.279,87.26,0.2]
[1771085921678,69.5975712,87.279,87.26,0.2]
[1771085921983,2.93836036,87.27,87.26,0.2]
[1771085922190,2.93836036,87.27,87.25,0.2]
[1771085922370,2.93836036,87.29,87.251,0.5]
[1771085922570,29.58,87.289,87.252,0.5]
[1771085923394,58.16,87.288,87.254,0.5]
[1771085923695,58.16,87.288,87.261,0.5]
[1771085924090,58.16,87.296,87.271,0.5]
[1771085924883,2.93836036,87.29,87.271,0.5]
[1771085925392,11.45619722,87.289,87.263,0.5]
[1771085925569,58.16,87.289,87.264,11.45947928]
[1771085925769,58.16,87.289,87.265,0.5]
[1771085925995,11.45360328,87.309,87.271,0.5]
[1771085926366,34.18,87.308,87.271,0.5]
[1771085926594,2.93836036,87.31,87.281,0.5]
[1771085928491,14.39180211,87.31,87.281,0.5]
[1771085929994,14.39180211,87.31,87.283,0.5]
[1771085930382,11.45254601,87.317,87.285,0.5]
[1771085930690,2.93836036,87.33,87.285,0.5]
[1771085930875,58.2,87.329,87.285,0.5]
[1771085931695,69.65094985,87.329,87.285,0.5]
[1771085931994,69.65094985,87.329,87.291,0.5]
[1771085933698,11.45094985,87.329,87.293,0.5]
[1771085933893,11.45094985,87.329,87.301,0.5]
[1771085934102,102.7,87.359,87.292,11.45580351]
[1771085934103,11.44883365,87.346,87.311,0.5]
[1771085934304,69.66883365,87.346,87.321,0.5]
[1771085934883,0.49897581,87.329,87.28,2.93836036]
[1771085935093,50.96,87.328,87.29,2.93836036]
[1771085935704,50.96,87.328,87.3,2.93836036]
[1771085935705,11.45108098,87.328,87.3,2.93836036]
[1771085935890,58.22,87.327,87.3,2.93836036]
[1771085936204,58.24,87.326,87.3,2.93836036]
[1771085936804,58.24,87.326,87.301,0.47671166]
[1771085937901,11.45147437,87.325,87.29,0.47671166]
[1771085938085,58.24,87.326,87.301,0.47671166]
[1771085939001,58.24,87.325,87.301,0.47671166]
[1771085939201,58.24,87.325,87.303,0.47671166]
[1771085939704,57.74,87.325,87.311,0.47671166]
[1771085940999,57.74,87.325,87.302,40.09071956]
[1771085941000,58.26,87.345,87.321,0.47671166]
[1771085941802,11.44806584,87.351,87.33,2.93836036]
[1771085942108,58.26,87.35,87.324,0.47671166]
[1771085942310,0.49897581,87.349,87.324,0.47671166]
[1771085942600,58.26,87.348,87.33,2.93836036]
[1771085943694,0.49897581,87.365,87.34,2.93836036]
[1771085943902,58.26,87.364,87.34,2.93836036]
[1771085944201,0.49897581,87.363,87.331,11.45068761]
[1771085944406,0.49897581,87.359,87.315,0.47671166]
[1771085944595,0.49897581,87.357,87.316,11.45265472]
[1771085944794,2.93836036,87.34,87.3,3.41507202]
[1771085945008,0.49897581,87.338,87.301,11.45462251]
[1771085945218,2.93836036,87.33,87.3,0.47671166]
[1771085945387,0.49897581,87.329,87.3,0.47671166]
[1771085945588,0.49897581,87.327,87.3,0.47671166]
[1771085945802,0.49897581,87.327,87.301,11.45462251]
[1771085945994,0.49897581,87.327,87.295,11.45531465]
[1771085946588,0.49897581,87.327,87.3,3.41507202]
[1771085948111,11.45134324,87.326,87.301,0.47671166]
[1771085948313,0.49897581,87.325,87.301,0.47671166]
[1771085948811,0.49897581,87.325,87.294,0.47671166]
[1771085950603,0.49897581,87.325,87.295,0.47671166]
[1771085951295,11.45160551,87.324,87.296,11.45527859]
[1771085951499,0.49897581,87.323,87.296,11.45527859]
[1771085951994,0.49897581,87.323,87.296,11.93199025]
[1771085953393,0.45399449,87.321,87.291,0.49785047]
[1771085953795,0.45399449,87.319,87.291,0.49785047]
[1771085955218,2.93836036,87.33,87.29,14.39429984]
[1771085955219,0.45399449,87.362,87.311,0.49785047]
[1771085955428,11.44714851,87.358,87.331,0.49785047]
[1771085955640,50.55399449,87.357,87.331,0.49785047]
[1771085955925,0.45399449,87.356,87.331,0.49785047]
[1771085956820,0.45399449,87.356,87.322,0.49785047]
[1771085957035,0.45399449,87.349,87.322,0.49785047]
[1771085957429,0.45399449,87.349,87.3,28.6366644]
[1771085957430,0.45399449,87.339,87.308,0.49785047]
[1771085957630,0.45399449,87.337,87.308,0.49785047]
[1771085958543,0.45399449,87.335,87.301,0.49785047]
[1771085959642,0.45399449,87.335,87.301,11.95247298]
[1771085959840,58.26,87.338,87.276,4.61729252]
[1771085959841,0.45399449,87.329,87.294,0.49785047]
[1771085960033,0.45399449,87.319,87.281,0.49785047]
[1771085960650,2.93836036,87.31,87.281,0.49785047]
[1771085960922,0.45399449,87.309,87.281,0.49785047]
[1771085961226,58.26,87.317,87.291,0.49785047]
[1771085961427,61.19836036,87.33,87.291,0.49785047]
[1771085961827,58.26,87.33,87.302,0.49785047]
[1771085962038,69.71090179,87.33,87.302,0.49785047]
[1771085962348,4.61729252,87.363,87.301,11.45462251]
[1771085962349,58.28,87.338,87.311,0.49785047]
[1771085963226,58.73399449,87.338,87.311,0.49785047]
[1771085963544,58.73399449,87.338,87.313,0.49785047]
[1771085964117,70.18378319,87.338,87.313,0.49785047]
[1771085965329,0.45399449,87.337,87.301,0.49785047]
[1771085965631,11.45003206,87.336,87.303,0.49785047]
[1771085965833,58.28,87.338,87.311,0.49785047]
[1771085966023,11.44990095,87.337,87.311,0.49785047]
[1771085966220,0.45399449,87.336,87.311,0.49785047]
[1771085966726,0.45399449,87.336,87.303,0.49785047]
[1771085966926,0.45399449,87.336,87.302,11.4544238]
[1771085967544,0.45399449,87.336,87.303,0.49785047]
[1771085967947,0.45399449,87.334,87.304,11.95207937]
[1771085968168,0.45399449,87.334,87.305,0.49785047]
[1771085971554,0.45399449,87.334,87.307,0.49785047]
[1771085973558,58.3,87.34,87.311,0.49785047]
[1771085973756,21.64,87.34,87.32,2.93836036]
[1771085973956,21.64,87.34,87.308,40.08796443]
[1771085973957,0.45399449,87.362,87.331,0.49785047]
[1771085974263,58.75399449,87.362,87.331,0.49785047]
[1771085974451,11.4459693,87.367,87.308,40.08796443]
[1771085974452,11.44539025,87.372,87.341,0.49785047]
[1771085974756,0.45399449,87.369,87.333,0.49785047]
[1771085976240,11.44583829,87.368,87.333,11.94821568]
[1771085976441,0.45399449,87.367,87.333,11.45036521]
[1771085977539,0.45399449,87.365,87.333,11.45036521]
[1771085978153,11.44610031,87.366,87.311,4.61729252]
[1771085978154,0.45399449,87.349,87.313,0.49785047]
[1771085978455,40.06135109,87.366,87.306,0.49785047]
[1771085978456,0.45399449,87.339,87.306,0.49785047]
[1771085978660,0.45399449,87.339,87.311,0.49785047]
[1771085978973,0.45399449,87.329,87.293,0.49785047]
[1771085979260,48.3,87.328,87.301,0.49785047]
[1771085979842,48.3,87.328,87.261,61.5]
[1771085979843,2.93778522,87.32,87.286,0.49785047]
[1771085980042,0.45399449,87.319,87.286,0.49785047]
[1771085980657,0.45399449,87.319,87.287,11.45645972]
[1771085981162,0.45399449,87.319,87.251,57.30540189]
[1771085981163,0.48825932,87.309,87.27,11.95570477]
[1771085981362,0.48825932,87.309,87.271,0.49701336]
[1771085982050,0.48825932,87.307,87.272,11.45842882]
[1771085983265,0.48825932,87.307,87.262,0.45015983]
[1771085983565,0.4533656,87.289,87.251,11.46118669]
[1771085984265,0.4533656,87.287,87.251,11.91134652]
[1771085984464,0.4533656,87.287,87.252,0.45015983]
[1771085984678,0.4533656,87.287,87.251,11.46118669]
[1771085984967,0.4533656,87.279,87.25,0.2]
[1771085985162,0.4533656,87.269,87.24,0.2]
[1771085985345,0.4533656,87.249,87.211,0.45015983]
[1771085985547,0.4533656,87.248,87.213,11.46612886]
[1771085986357,0.4533656,87.246,87.218,0.45015983]
[1771085986672,0.4533656,87.258,87.22,7.55285068]
[1771085986841,0.4533656,87.256,87.22,7.55285068]
[1771085987045,0.4533656,87.256,87.22,0.2]
[1771085987244,7.35285068,87.25,87.22,0.2]
[1771085987463,0.4533656,87.249,87.22,0.2]
[1771085987975,0.4533656,87.256,87.226,0.45015983]
[1771085988272,11.46092397,87.253,87.226,0.45015983]
[1771085988446,11.91428957,87.253,87.226,0.45015983]
[1771085988757,7.35285068,87.25,87.226,0.45015983]
[1771085988962,0.4533656,87.249,87.22,0.2]
[1771085989154,58.7533656,87.249,87.22,0.2]
[1771085989677,0.4533656,87.248,87.22,11.66519396]
[1771085990042,0.4533656,87.248,87.22,0.2]
[1771085990043,58.7533656,87.248,87.22,0.2]
[1771085990256,11.46171215,87.247,87.224,0.45015983]
[1771085990967,28.64868812,87.265,87.23,0.65015983]
[1771085990968,11.46069097,87.255,87.23,0.65015983]
[1771085991158,58.32,87.254,87.23,0.65015983]
[1771085991361,58.7733656,87.254,87.23,0.65015983]
[1771085991558,0.4533656,87.253,87.23,0.2]
[1771085991759,7.35285068,87.25,87.23,0.2]
[1771085992071,0.4533656,87.239,87.22,0.2]
[1771085992569,0.4533656,87.236,87.22,0.2]
[1771085993765,28.65099648,87.257,87.22,0.2]
[1771085993766,58.34,87.241,87.221,0.45015983]
[1771085994962,58.7933656,87.241,87.22,0.2]
[1771085995164,0.4533656,87.241,87.22,0.2]
[1771085995471,58.38,87.24,87.22,0.2]
[1771085995655,58.38,87.24,87.221,0.45015983]
[1771085998247,11.46276321,87.239,87.22,0.2]
[1771085998877,58.38,87.24,87.22,0.2]
[1771085999088,0.4533656,87.229,87.21,0.2]
[1771085999254,11.46266472,87.24,87.21,0.65015983]
[1771085999255,0.4533656,87.238,87.21,0.65015983]
[1771085999454,0.4533656,87.236,87.21,0.65015983]
[1771085999854,0.4533656,87.229,87.21,0.2]
[1771086000173,58.4,87.228,87.21,0.2]
[1771086000373,0.4533656,87.226,87.2,0.2]
[1771086000580,0.4533656,87.219,87.2,0.2]
[1771086001377,58.42,87.22,87.2,0.65015983]
[1771086001882,58.42,87.221,87.2,0.65015983]
[1771086002060,58.42,87.221,87.201,0.45015983]
[1771086002260,0.4533656,87.226,87.201,0.45015983]
[1771086002573,58.44,87.225,87.203,0.45015983]
[1771086002764,11.46369028,87.232,87.203,0.45015983]
[1771086002964,58.42,87.231,87.203,0.45015983]
[1771086003777,7.35285068,87.24,87.202,11.46762688]
[1771086003778,0.4533656,87.254,87.211,0.45015983]
[1771086003978,58.44,87.243,87.211,0.45015983]
[1771086004564,0.4533656,87.241,87.213,0.45015983]
[1771086004763,0.4533656,87.239,87.213,0.45015983]
[1771086005265,0.4533656,87.229,87.2,0.2]
[1771086005873,0.4533656,87.219,87.2,0.2]
[1771086006074,0.4533656,87.217,87.2,0.2]
[1771086006585,58.48,87.218,87.2,0.2]
[1771086006765,0.4533656,87.243,87.211,0.45015983]
[1771086006973,58.48,87.242,87.211,0.45015983]
[1771086007577,0.4533656,87.239,87.211,0.45015983]
[1771086007774,58.5,87.238,87.211,0.45015983]
[1771086007967,0.4533656,87.237,87.211,0.45015983]
[1771086010367,11.46315741,87.236,87.211,0.45015983]
[1771086011579,11.46315741,87.236,87.2,7.55285068]
[1771086011580,0.4533656,87.234,87.204,0.45015983]
[1771086011979,0.4533656,87.234,87.2,0.2]
[1771086012291,0.4533656,87.227,87.2,0.2]
[1771086012479,7.35285068,87.21,87.193,1e-08]
[1771086012681,7.35285068,87.2,87.143,47.84]
[1771086012993,0.45099335,87.199,87.16,7.35285068]
[1771086013286,58.56,87.203,87.17,7.35285068]
[1771086013485,58.56,87.204,87.17,7.35285068]
[1771086013869,0.45099335,87.203,87.17,7.35285068]
[1771086014098,0.45099335,87.203,87.16,7.35285068]
[1771086014292,11.91914628,87.198,87.161,11.47302119]
[1771086014474,0.45099335,87.197,87.161,11.47302119]
[1771086014794,0.45099335,87.189,87.149,0.48067811]
[1771086015090,0.45099335,87.189,87.151,0.48067811]
[1771086015293,0.45099335,87.187,87.151,0.48067811]
[1771086015791,0.45099335,87.179,87.146,0.48067811]
[1771086016377,11.92190884,87.177,87.146,0.48067811]
[1771086016695,0.45099335,87.176,87.146,0.48067811]
[1771086016884,59.01099335,87.176,87.146,0.48067811]
[1771086017086,0.45099335,87.175,87.146,0.48067811]
[1771086017480,0.45099335,87.175,87.147,11.4748643]
[1771086017681,0.45099335,87.175,87.148,0.48067811]
[1771086018989,0.45099335,87.173,87.142,11.47547052]
[1771086019198,0.45099335,87.173,87.143,0.48067811]
[1771086019779,0.45099335,87.169,87.14,0.2]
[1771086020091,0.45099335,87.169,87.141,11.9563325]
[1771086020400,0.45099335,87.173,87.142,0.48067811]
[1771086020600,0.45099335,87.169,87.142,0.48067811]
[1771086020977,0.45099335,87.178,87.144,0.48067811]
[1771086022495,0.45144827,87.176,87.144,0.48067811]
[1771086022702,0.45144827,87.176,87.144,11.95590377]
[1771086023103,0.45144827,87.176,87.144,11.47522566]
[1771086023798,11.47020136,87.183,87.151,0.48385527]
[1771086024191,0.45144827,87.182,87.151,0.48385527]
[1771086024395,2.95075709,87.18,87.151,11.95816901]
[1771086024704,0.45144827,87.179,87.151,11.95816901]
[1771086025283,0.45144827,87.179,87.151,11.47431374]
[1771086025505,0.45144827,87.179,87.144,11.47525934]
[1771086025704,0.45144827,87.179,87.14,0.2]
[1771086026006,0.45144827,87.181,87.141,0.48385527]
[1771086026188,0.45144827,87.18,87.141,0.48385527]
[1771086026390,3.40220536,87.18,87.141,0.48385527]
[1771086026599,0.45144827,87.179,87.141,0.48385527]
[1771086027283,0.45144827,87.177,87.143,0.48385527]
[1771086027705,2.95075709,87.18,87.143,0.48385527]
[1771086028094,3.40220536,87.18,87.143,0.48385527]
[1771086028296,0.45144827,87.179,87.143,0.48385527]
[1771086029303,0.45144827,87.177,87.144,0.48385527]
[1771086029689,0.45144827,87.169,87.144,0.48385527]
[1771086029890,0.45144827,87.169,87.14,0.2]
[1771086030693,0.45144827,87.159,87.14,0.2]
[1771086030894,0.45144827,87.166,87.14,0.2]
[1771086031092,2.95075709,87.16,87.14,0.2]
[1771086031294,14.42395099,87.16,87.14,0.2]
[1771086031588,0.45144827,87.159,87.14,0.2]
[1771086031793,14.42395099,87.16,87.112,0.48385527]
[1771086031794,0.45144827,87.149,87.112,0.48385527]
[1771086032117,11.4731939,87.16,87.116,11.47892961]
[1771086032118,3.40220536,87.14,87.116,11.47892961]
[1771086032411,3.40220536,87.14,87.1,2.95075709]
[1771086032412,2.95075709,87.13,87.103,0.48385527]
[1771086032707,0.45144827,87.129,87.09,0.49806568]
[1771086032919,0.45144827,87.119,87.09,0.49806568]
[1771086033092,58.56,87.136,87.091,0.49806568]
[1771086033286,11.47591778,87.139,87.101,0.49806568]
[1771086034207,11.47591778,87.139,87.102,0.49806568]
[1771086034496,2.95075709,87.13,87.102,0.49806568]
[1771086034700,2.95075709,87.14,87.102,0.49806568]
[1771086034904,11.92657593,87.145,87.102,0.49806568]
[1771086035109,2.95075709,87.14,87.102,0.49806568]
[1771086035415,11.47591778,87.139,87.104,0.49806568]
[1771086035610,3.40220536,87.13,87.104,0.49806568]
[1771086035813,0.45144827,87.129,87.098,11.48121136]
[1771086036006,2.95075709,87.12,87.098,0.49806568]
[1771086036525,28.6863821,87.15,87.1,0.49806568]
[1771086036740,11.47243805,87.166,87.121,0.49806568]
[1771086036940,48.46,87.176,87.131,0.49806568]
[1771086037225,2.95058367,87.16,87.131,0.49806568]
[1771086037423,11.92473272,87.159,87.131,0.49806568]
[1771086037644,40.47794386,87.159,87.131,0.49806568]
[1771086037920,0.45144827,87.157,87.121,0.49806568]
[1771086038101,11.34328445,87.159,87.121,0.49806568]
[1771086039026,2.95058367,87.15,87.121,0.49806568]
[1771086039430,11.47460097,87.149,87.121,0.49806568]
[1771086041513,2.95058367,87.14,87.113,0.49892756]
[1771086042019,3.42646055,87.14,87.113,0.49892756]
[1771086042216,2.95058367,87.13,87.113,0.49892756]
[1771086042423,0.47587688,87.119,87.08,0.49892756]
[1771086042740,2.95058367,87.1,87.082,0.49892756]
[1771086042945,11.48118807,87.099,87.082,0.49892756]
[1771086043266,11.47996623,87.109,87.084,0.49391018]
[1771086043618,2.95058367,87.1,87.084,0.49391018]
[1771086043819,2.95058367,87.09,87.075,0.49391018]
[1771086044020,0.46025166,87.105,87.075,0.49391018]
[1771086044021,2.95058367,87.1,87.075,0.49391018]
[1771086044238,11.47996623,87.109,87.075,0.49391018]
[1771086044940,7.38794269,87.11,87.077,0.49391018]
[1771086046023,7.38794269,87.12,87.081,0.49391018]
[1771086047048,7.38794269,87.12,87.058,57.43281871]
[1771086047049,18.86504586,87.13,87.091,0.49391018]
[1771086047240,11.47710317,87.13,87.091,0.49391018]
[1771086047630,18.86504586,87.13,87.091,0.49391018]
[1771086047847,7.38794269,87.12,87.091,0.49391018]
[1771086048026,7.38794269,87.11,87.091,0.49391018]
[1771086048226,7.38794269,87.11,87.083,0.49391018]
[1771086048921,0.46025166,87.109,87.083,0.49391018]
[1771086049125,11.48000183,87.108,87.083,0.49391018]
[1771086049528,11.47944986,87.113,87.083,0.49391018]
[1771086050549,11.47944986,87.113,87.049,47.5]
[1771086050550,4.61729252,87.135,87.091,0.49391018]
[1771086050855,0.46025166,87.139,87.111,0.49391018]
[1771086051049,0.46025166,87.139,87.101,0.49391018]
[1771086051346,0.46025166,87.137,87.101,0.49391018]
[1771086051546,0.46025166,87.129,87.101,0.49391018]
[1771086051729,11.93630114,87.138,87.101,0.49391018]
[1771086051930,11.47604948,87.138,87.102,0.49391018]
[1771086052227,11.47604948,87.138,87.11,7.38794269]
[1771086052430,11.47604948,87.138,87.111,0.49391018]
[1771086052627,11.47545858,87.143,87.111,0.49391018]
[1771086053544,7.38794269,87.14,87.111,0.49391018]
[1771086054055,0.46025166,87.145,87.111,0.49391018]
[1771086054853,0.46025166,87.139,87.102,0.49391018]
[1771086055154,7.38794269,87.13,87.102,0.49391018]
[1771086055331,0.46025166,87.141,87.102,0.49391018]
[1771086055533,7.38794269,87.14,87.104,0.49391018]
[1771086055754,7.84819435,87.14,87.104,0.49391018]
[1771086056250,7.38794269,87.14,87.104,0.49391018]
[1771086056641,0.46025166,87.139,87.104,0.49391018]
[1771086056838,0.46025166,87.129,87.095,0.49391018]
[1771086057153,7.38794269,87.12,87.095,0.49391018]
[1771086057353,0.46025166,87.129,87.095,0.49391018]
[1771086057847,7.38794269,87.12,87.095,0.49391018]
[1771086058034,7.38794269,87.11,87.075,0.49391018]
[1771086058237,7.84819435,87.11,87.075,0.49391018]
[1771086059331,7.84819435,87.11,87.076,0.49391018]